bitfinex/quotes_ETHUSD_20251128
["timestamp","ask_amount","ask_price","bid_price","bid_amount"]
[1764337902366,0.1405007,3071.2,3070.5,0.4945]
[1764337902571,6.51232456,3071.1,3070.5,0.4945]
[1764337902735,0.04070335,3071.0,3070.1,1.00736598]
[1764337903083,0.04070335,3071.0,3070.2,1.23728569]
[1764337903376,3.25607962,3071.2,3070.9,0.4817]
[1764337903581,0.002,3071.4,3070.3,0.4945]
[1764337903582,0.04269805,3071.4,3071.1,0.669]
[1764337903738,0.04269805,3071.4,3071.3,0.4817]
[1764337903739,3.25786613,3071.4,3071.3,0.4817]
[1764337904339,3.25706613,3071.4,3071.3,0.4817]
[1764337905973,0.0012,3071.4,3071.3,0.9762]
[1764337906170,0.0012,3071.4,3071.3,0.4817]
[1764337906504,0.04189805,3071.4,3071.1,0.1873]
[1764337906705,3.25595024,3071.3,3071.1,0.1873]
[1764337907006,3.25595024,3071.3,3071.1,0.6818]
[1764337907701,3.29778672,3071.4,3071.2,0.4817]
[1764337907885,0.0012,3071.4,3071.3,0.4817]
[1764337908398,3.25704424,3071.4,3071.1,0.1873]
[1764337908699,0.0012,3071.4,3071.1,0.6818]
[1764337908900,0.04189805,3071.4,3071.1,0.6818]
[1764337909105,0.04189805,3071.4,3070.8,0.4945]
[1764337909406,0.04189805,3071.4,3070.7,0.215]
[1764337909570,0.04189805,3071.4,3070.6,0.4945]
[1764337909986,0.53449805,3071.4,3070.4,0.215]
[1764337910308,0.04189805,3071.4,3070.5,0.01718258]
[1764337910792,6.51190048,3071.3,3070.3,0.85296598]
[1764337910999,0.0407007,3071.2,3070.4,0.4945]
[1764337911327,0.0407007,3071.2,3071.1,0.669]
[1764337911462,3.25595024,3071.3,3071.1,0.669]
[1764337911665,3.25595024,3071.3,3071.2,0.4817]
[1764337913397,6.51190048,3071.3,3070.5,0.4945]
[1764337913696,0.0407007,3071.2,3070.6,0.215]
[1764337913899,0.0407007,3071.2,3070.7,0.01718146]
[1764337914198,3.2570868,3071.4,3071.1,0.669]
[1764337914406,3.2570868,3071.4,3071.2,0.4817]
[1764337914407,0.0012,3071.4,3071.2,0.4817]
[1764337914969,0.0012,3071.4,3071.1,0.1873]
[1764337914970,6.51290717,3071.4,3071.1,0.1873]
[1764337915170,6.55360522,3071.4,3071.1,0.1873]
[1764337915397,0.0012,3071.4,3071.3,0.4817]
[1764337916071,0.0012,3071.4,3071.3,0.9762]
[1764337919599,0.0012,3071.4,3071.3,0.4817]
[1764337921241,0.0012,3071.4,3070.8,0.85296598]
[1764337921242,1.17431541,3071.4,3070.8,0.215]
[1764337921396,0.0012,3071.4,3071.3,0.4817]
[1764337921720,0.0012,3071.4,3071.3,0.6967]
[1764337922030,0.0012,3071.4,3071.3,1.60521526]
[1764337922208,0.002,3071.8,3071.4,0.405504]
[1764337922411,0.002,3071.8,3071.7,7.58641629]
[1764337922882,0.002,3071.8,3071.7,8.48642029]
[1764337923297,0.002,3071.8,3071.7,7.34414718]
[1764337923495,0.002,3072.1,3071.9,3.2553143]
[1764337923703,0.002,3072.1,3072.0,1.9481687]
[1764337924018,0.002,3072.1,3072.0,1.30173143]
[1764337924338,0.002,3072.1,3072.0,2.371872]
[1764337924501,0.002,3072.1,3072.0,1.51673143]
[1764337925007,0.002,3073.3,3072.1,20.5226564]
[1764337925211,0.002,3074.0,3073.3,0.405504]
[1764337925431,0.002,3074.0,3073.9,7.09354129]
[1764337925734,0.002,3074.0,3073.9,8.51602013]
[1764337925884,0.002,3074.0,3073.9,11.98421639]
[1764337926078,0.002,3074.0,3073.9,13.62150901]
[1764337926283,0.002,3074.0,3073.9,12.76972617]
[1764337926524,0.002,3074.0,3073.9,0.6967]
[1764337926683,0.002,3074.0,3073.9,0.215]
[1764337926886,0.002,3074.0,3073.9,0.6967]
[1764337927117,0.04065437,3074.7,3073.9,1.1912]
[1764337927387,0.04064908,3075.1,3074.6,0.669]
[1764337927691,0.04064908,3075.1,3073.8,0.72559411]
[1764337927692,9.7966127,3075.1,3073.6,0.4945]
[1764337928028,0.4912,3075.0,3073.7,0.215]
[1764337928226,0.04065172,3074.9,3073.7,0.215]
[1764337928398,0.04065172,3074.9,3073.8,6.45694318]
[1764337928597,0.22835172,3074.9,3073.8,6.45694318]
[1764337928817,0.22835172,3074.9,3073.9,0.4945]
[1764337928993,0.22835172,3074.9,3074.0,0.215]
[1764337929488,0.03985172,3074.9,3074.1,0.4945]
[1764337929687,6.69277656,3074.9,3074.1,0.4945]
[1764337929887,0.4926,3074.8,3074.0,10.0]
[1764337930100,0.04065437,3074.7,3074.1,0.215]
[1764337930503,0.04065437,3074.7,3074.0,10.0]
[1764337930504,0.3532,3074.2,3074.0,10.0]
[1764337930699,0.3938623,3074.1,3074.0,10.0]
[1764337930919,0.8624623,3074.1,3074.0,10.0]
[1764337931797,3.64684691,3074.1,3074.0,10.0]
[1764337932097,4.07478461,3074.1,3074.0,10.0]
[1764337932301,3.60618461,3074.1,3074.0,10.0]
[1764337933320,3.25298461,3074.1,3074.0,10.0]
[1764337935526,4.09748461,3074.1,3074.0,10.0]
[1764337935825,4.92287872,3074.1,3074.0,10.0]
[1764337936737,4.82307872,3074.1,3074.0,10.0]
[1764337937806,4.92287872,3074.1,3074.0,10.0]
[1764337938195,4.09748461,3074.1,3074.0,10.0]
[1764337938493,6.50512278,3074.5,3073.4,0.4981]
[1764337938693,0.04065833,3074.4,3073.4,0.4981]
[1764337939429,0.52635833,3074.4,3073.4,0.4981]
[1764337939796,9.75831894,3074.3,3073.4,0.4981]
[1764337940027,0.04066098,3074.2,3073.4,0.4981]
[1764337940627,0.04066098,3074.2,3073.5,0.215]
[1764337941002,0.04066098,3074.2,3073.4,0.4981]
[1764337941195,0.04066098,3074.2,3073.1,0.1849]
[1764337941196,0.52636098,3074.2,3073.1,0.1849]
[1764337941400,0.52636098,3074.2,3073.2,0.215]
[1764337942016,0.52636098,3074.2,3072.7,3.35898843]
[1764337942017,13.01193844,3074.1,3072.7,0.6027]
[1764337942205,0.0998,3073.9,3072.8,0.215]
[1764337942608,0.0998,3073.9,3072.0,0.32553143]
[1764337942609,0.67,3073.8,3072.3,0.1849]
[1764337942906,1.00236873,3073.7,3072.4,0.215]
[1764337943123,0.22496627,3073.8,3072.5,0.01792659]
[1764337943327,0.04066627,3073.8,3072.5,0.903604]
[1764337943526,0.04066627,3073.8,3072.6,0.4981]
[1764337943726,0.04066627,3073.8,3072.7,0.215]
[1764337944140,6.50681588,3073.7,3072.8,3.75246084]
[1764337944341,0.04066363,3074.0,3073.7,0.6671]
[1764337944520,0.04066098,3074.2,3073.7,0.8821]
[1764337945255,0.04066098,3074.2,3073.7,0.6671]
[1764337946235,6.50596922,3074.1,3073.6,0.215]
[1764337946439,0.04066363,3074.0,3073.6,0.215]
[1764337946747,0.002,3074.4,3073.7,0.4981]
[1764337946953,3.25466718,3074.4,3073.7,0.4981]
[1764337947132,0.04065966,3074.3,3073.7,0.4981]
[1764337947646,0.04065966,3074.3,3073.5,0.215]
[1764337947812,0.04065966,3074.3,3073.6,0.74054405]
[1764337948245,0.04065966,3074.3,3073.7,3.25340794]
[1764337948449,3.29344272,3074.3,3073.7,3.25340794]
[1764337948617,3.29344272,3074.3,3073.6,0.74054405]
[1764337948817,3.29344272,3074.3,3073.6,3.99405171]
[1764337949017,6.54622578,3074.3,3073.6,0.74054405]
[1764337949225,6.54622578,3074.3,3073.4,0.3999]
[1764337949226,0.30294475,3074.2,3073.4,0.3999]
[1764337949422,0.0406623,3074.1,3073.4,0.3999]
[1764337949621,0.0406623,3074.1,3073.5,0.01790631]
[1764337950240,3.25287879,3074.2,3073.6,0.4981]
[1764337950441,0.0406623,3074.1,3073.6,0.4981]
[1764337950614,0.0406623,3074.1,3073.4,0.3999]
[1764337950816,0.0406623,3074.1,3073.5,0.41517384]
[1764337951446,0.0406623,3074.1,3073.4,0.1849]
[1764337951749,0.0406623,3074.1,3073.6,0.215]
[1764337951926,0.3641,3073.7,3073.0,4.10589261]
[1764337952118,3.25351379,3073.6,3073.1,0.215]
[1764337952322,3.25351379,3073.6,3073.2,0.34691098]
[1764337953046,0.04066627,3073.8,3073.2,0.84501098]
[1764337953344,6.50663932,3073.8,3073.2,0.4981]
[1764337953551,6.54730559,3073.8,3073.2,0.4981]
[1764337954143,0.30408448,3073.7,3073.2,0.4981]
[1764337954369,0.04066363,3074.0,3073.7,0.4822]
[1764337954546,0.3040778,3073.9,3073.7,0.4822]
[1764337954751,0.1843,3073.9,3073.6,0.215]
[1764337955141,0.1843,3073.9,3073.5,0.215]
[1764337955546,0.04066627,3073.8,3073.5,0.215]
[1764337955749,0.4857,3074.3,3073.5,0.215]
[1764337955750,0.04066363,3074.0,3073.5,0.215]
[1764337956151,0.3641,3073.6,3073.5,0.215]
[1764337956353,3.92184463,3073.6,3073.2,0.215]
[1764337956655,3.92184463,3073.6,3072.1,8.79577027]
[1764337956656,0.0048,3073.0,3072.1,3.4700934]
[1764337956865,0.3605,3072.8,3072.2,0.46484077]
[1764337957668,0.1843,3073.3,3072.3,0.01793911]
[1764337957865,0.30413067,3073.2,3072.2,1.34988284]
[1764337958024,0.30413067,3073.1,3072.4,0.405504]
[1764337958248,3.92362222,3073.5,3072.5,6.5093572]
[1764337958469,0.30411718,3073.4,3072.6,0.9916644]
[1764337958688,0.30411718,3073.3,3072.6,1.4897644]
[1764337958983,0.30411718,3073.2,3072.6,1.4897644]
[1764337959182,3.43792222,3073.5,3072.7,0.51602852]
[1764337959377,0.30413538,3073.4,3072.7,0.51602852]
[1764337959575,0.30413538,3073.3,3072.7,0.51602852]
[1764337959773,3.25362222,3073.5,3072.7,0.51602852]
[1764337960087,0.30414194,3073.4,3072.7,0.51602852]
[1764337960297,0.30414194,3073.3,3072.8,3.25436084]
[1764337960471,3.25362222,3073.5,3072.9,0.72040099]
[1764337960662,0.30416397,3073.4,3073.0,0.215]
[1764337960863,6.50724444,3073.5,3073.0,0.215]
[1764337961063,0.30416167,3073.4,3073.0,0.01791955]
[1764337961300,6.50724444,3073.5,3073.0,0.215]
[1764337961301,7.00344444,3073.5,3073.0,0.215]
[1764337961460,0.30416694,3073.4,3073.0,0.215]
[1764337961663,0.30416694,3073.3,3073.0,0.215]
[1764337961860,7.00344444,3073.5,3073.0,0.215]
[1764337962168,7.00344444,3073.5,3072.7,0.215]
[1764337962169,0.3579,3073.1,3072.7,0.215]
[1764337962377,3.61203336,3073.1,3072.7,0.215]
[1764337962557,6.86616672,3073.1,3072.7,0.215]
[1764337962888,0.4948,3073.0,3072.7,0.215]
[1764337963057,3.25413336,3073.1,3072.7,0.215]
[1764337963257,3.25413336,3073.1,3072.7,0.678]
[1764337963590,6.50826672,3073.1,3072.7,0.215]
[1764337963756,3.25413336,3073.1,3072.7,0.215]
[1764337964156,3.25383642,3073.3,3072.7,0.678]
[1764337964356,0.1843,3073.9,3072.7,0.678]
[1764337964357,0.04066892,3073.6,3072.9,3.25425493]
[1764337964563,0.3040812,3073.5,3072.9,3.25425493]
[1764337964780,0.04066627,3073.8,3073.0,0.463]
[1764337964969,0.04066627,3073.8,3073.1,0.91215099]
[1764337964970,0.30405689,3073.7,3073.1,0.91215099]
[1764337965174,0.04066627,3073.8,3073.1,1.09835099]
[1764337965374,0.30406482,3073.7,3073.1,1.09835099]
[1764337965586,0.04066627,3073.8,3073.1,1.09835099]
[1764337965783,0.30406504,3073.7,3073.1,1.09835099]
[1764337965987,0.04066892,3073.6,3073.1,0.91215099]
[1764337966187,0.04066892,3073.6,3073.1,0.215]
[1764337966385,0.4962,3073.5,3073.1,0.215]
[1764337966560,0.04067156,3073.4,3072.7,0.85178284]
[1764337966891,0.30408606,3073.3,3072.8,0.215]
[1764337967090,0.04067156,3073.4,3072.8,0.215]
[1764337967389,0.30408713,3073.3,3072.8,0.215]
[1764337967561,0.04067156,3073.4,3072.8,0.215]
[1764337967762,7.0028042,3073.8,3072.8,0.215]
[1764337967981,0.34472414,3073.7,3072.8,0.215]
[1764337968177,0.34472414,3073.7,3072.4,0.85278284]
[1764337968178,0.5421,3072.9,3072.4,0.85278284]
[1764337968376,0.5421,3072.9,3072.4,0.001]
[1764337968377,0.4745,3072.5,3072.4,0.001]
[1764337968689,4.03332278,3072.5,3072.4,0.001]
[1764337968894,4.51542278,3072.5,3072.4,0.001]
[1764337969186,3.25411394,3073.1,3072.4,0.001]
[1764337969187,0.1827,3073.2,3072.4,0.4931]
[1764337969429,6.81208556,3073.1,3072.4,0.4931]
[1764337969600,0.30394814,3073.0,3072.4,0.4931]
[1764337972065,0.4962,3073.5,3072.7,0.43439578]
[1764337972299,0.04067156,3073.4,3072.7,0.43439578]
[1764337972804,6.50766276,3073.3,3072.7,0.43439578]
[1764337973091,0.04067421,3073.2,3072.8,0.215]
[1764337973595,0.53687421,3073.2,3072.6,0.215]
[1764337973796,0.04067421,3073.2,3072.6,0.215]
[1764337974000,0.04067421,3073.2,3072.7,0.48092852]
[1764337974398,3.2536628,3073.5,3073.1,0.5931]
[1764337974893,0.1827,3073.9,3073.1,1.2711]
[1764337974894,3.2533021,3073.8,3073.1,1.2711]
[1764337975097,0.34448819,3073.7,3073.1,0.8081]
[1764337975399,0.04066759,3073.7,3073.1,0.8081]
[1764337976939,3.25351379,3073.6,3073.2,0.45251738]
[1764337977099,3.25351379,3073.6,3073.1,0.8081]
[1764337977100,3.25271379,3073.6,3073.1,0.8081]
[1764337977402,6.50622758,3073.6,3073.1,0.215]
[1764337977614,0.04067024,3073.5,3073.1,0.4012]
[1764337977909,0.04067024,3073.5,3073.1,0.8642]
[1764337978674,3.25271379,3073.6,3073.1,0.8642]
[1764337979008,3.29411084,3073.7,3073.2,0.463]
[1764337979209,3.29411084,3073.7,3073.2,0.87482321]
[1764337979381,0.04066892,3073.6,3073.2,0.87482321]
[1764337979582,0.04066892,3073.6,3073.2,0.463]
[1764337980311,0.002,3074.0,3073.5,0.4921]
[1764337980608,0.002,3074.0,3073.6,0.678]
[1764337980826,0.002,3074.0,3073.9,0.4921]
[1764337980978,0.002,3074.0,3073.9,4.16613641]
[1764337981174,0.002,3074.0,3073.9,4.62913641]
[1764337981480,0.002,3074.0,3073.9,5.47992623]
[1764337982008,0.002,3074.0,3073.9,4.62913641]
[1764337982203,0.002,3074.0,3073.9,5.47891158]
[1764337982726,0.002,3074.0,3073.9,6.20450569]
[1764337982926,0.002,3074.0,3073.9,5.76023452]
[1764337983283,0.002,3074.0,3073.9,6.60948644]
[1764337983918,0.002,3074.4,3074.0,1.13109811]
[1764337984076,0.002,3074.4,3074.3,0.4921]
[1764337984475,0.002,3074.4,3074.3,0.9551]
[1764337985013,0.002,3074.4,3074.3,4.20787298]
[1764337985515,0.002,3074.4,3074.3,5.33897109]
[1764337985715,0.002,3074.8,3074.7,7.6496975]
[1764337985904,0.002,3074.8,3074.7,2.10457573]
[1764337986105,0.002,3074.8,3074.7,0.4921]
[1764337986278,0.002,3074.8,3074.7,1.1701]
[1764337986622,0.3743,3074.8,3074.7,10.0]
[1764337986791,3.66719709,3074.8,3074.7,10.0]
[1764337987112,3.62774404,3074.8,3074.7,10.0]
[1764337987299,4.12144404,3074.8,3074.7,10.0]
[1764337989818,0.3755,3074.8,3074.7,10.0]
[1764337990005,0.4111,3074.8,3074.7,10.0]
[1764337990588,0.002,3074.8,3074.7,10.4526]
[1764337991490,0.002,3074.8,3074.7,10.0]
[1764337992888,0.002,3074.8,3074.7,11.85331837]
[1764337993085,0.002,3074.8,3074.7,15.10566819]
[1764337993698,0.002,3074.8,3074.7,11.36231837]
[1764337993885,0.002,3074.8,3074.7,10.90971837]
[1764337994313,0.002,3074.8,3074.7,14.61466819]
[1764337994518,0.002,3074.8,3074.7,10.90971837]
[1764337995097,0.8591,3074.8,3074.7,10.0]
[1764337995707,0.9589,3074.8,3074.7,10.0]
[1764337995911,0.8591,3074.8,3074.7,10.0]
[1764337996527,0.9589,3074.8,3074.7,10.0]
[1764337996933,4.21114404,3074.8,3074.7,10.0]
[1764337998203,4.25179709,3074.8,3074.7,10.0]
[1764337998529,4.15199709,3074.8,3074.7,10.0]
[1764337999104,4.55461245,3074.8,3074.7,10.0]
[1764337999420,5.18040656,3074.8,3074.7,10.0]
[1764337999602,5.28020656,3074.8,3074.7,10.0]
[1764337999803,5.28028394,3074.8,3074.7,10.0]
[1764338000119,0.0998,3074.5,3073.8,0.215]
[1764338000303,0.30289274,3074.4,3073.8,0.215]
[1764338000500,0.4637,3074.4,3073.8,0.215]
[1764338000929,0.577,3073.9,3073.8,0.215]
[1764338001230,3.82939626,3073.9,3073.8,0.215]
[1764338002000,4.29209626,3073.9,3073.8,0.215]
[1764338002404,4.29209626,3073.9,3072.8,0.84750598]
[1764338002405,10.79848878,3073.9,3072.8,0.84750598]
[1764338002604,3.25319626,3073.9,3072.9,0.68311806]
[1764338002803,3.25319626,3073.9,3073.6,0.001]
[1764338003107,6.50596922,3074.1,3073.6,0.001]
[1764338003307,0.30333986,3074.0,3073.6,0.001]
[1764338003543,0.30333986,3073.9,3073.6,0.001]
[1764338003847,0.3799,3073.7,3073.6,0.001]
[1764338004356,0.8545,3073.7,3073.6,0.001]
[1764338004646,0.3799,3073.7,3073.6,0.001]
[1764338005014,1.15791108,3073.7,3073.6,0.001]
[1764338005215,4.41131902,3073.7,3073.6,0.001]
[1764338005530,3.93671902,3073.7,3073.6,0.001]
[1764338006017,4.41131902,3073.7,3073.6,0.001]
[1764338006217,4.51111902,3073.7,3073.6,0.001]
[1764338006547,4.41131902,3073.7,3073.6,0.001]
[1764338006992,4.51111902,3073.7,3073.6,0.001]
[1764338007452,4.72611902,3073.7,3073.6,0.001]
[1764338007941,5.45171313,3073.7,3073.6,0.001]
[1764338008717,5.85721713,3073.7,3073.6,0.001]
[1764338008918,0.405504,3073.6,3072.4,0.001]
[1764338009108,3.2593786,3072.5,3072.4,0.001]
[1764338009512,0.4756,3072.8,3072.4,0.001]
[1764338009743,3.25446675,3072.7,3072.4,0.001]
[1764338010122,6.50902089,3072.7,3072.4,0.001]
[1764338010322,0.4981,3072.5,3072.4,0.001]
[1764338011150,4.1096786,3072.5,3072.4,0.001]
[1764338012261,4.2094786,3072.5,3072.4,0.001]
[1764338013547,4.1096786,3072.5,3072.4,0.001]
[1764338015963,4.25016208,3072.5,3072.4,0.001]
[1764338017553,4.55223075,3072.5,3072.4,0.001]
[1764338017884,11.23375929,3072.5,3072.4,0.001]
[1764338018084,0.72559411,3072.4,3072.0,0.001]
[1764338018266,6.05573443,3072.1,3072.0,0.001]
[1764338018453,7.67749721,3072.1,3072.0,0.001]
[1764338018653,8.15209721,3072.1,3072.0,0.001]
[1764338019764,11.40719958,3072.1,3072.0,0.001]
[1764338021390,0.4863,3072.8,3072.0,0.9449]
[1764338021682,3.72340237,3072.1,3072.0,0.001]
[1764338021983,5.00635603,3072.1,3072.0,0.001]
[1764338022185,5.49145603,3072.1,3072.0,0.001]
[1764338023803,5.27645603,3072.1,3072.0,0.001]
[1764338024282,5.49145603,3072.1,3072.0,0.001]
[1764338024656,3.59746192,3072.1,3072.0,0.001]
[1764338025288,3.29579114,3072.1,3072.0,0.4698]
[1764338025488,0.30203962,3072.1,3072.0,0.4698]
[1764338025797,3.2948898,3072.2,3072.1,0.6526]
[1764338026692,3.2948898,3072.2,3072.0,0.001]
[1764338027371,3.2948898,3072.2,3072.1,0.4688]
[1764338027573,3.59721814,3072.2,3072.1,0.4688]
[1764338027987,3.59721814,3072.2,3072.0,0.001]
[1764338028189,3.2948898,3072.2,3072.0,0.001]
[1764338029165,6.54989215,3072.2,3072.0,0.001]
[1764338029498,0.30265833,3072.1,3072.0,0.001]
[1764338029877,3.5577607,3072.1,3072.0,0.4698]
[1764338030078,3.5577607,3072.1,3072.0,0.001]
[1764338030285,0.30265833,3072.1,3072.0,0.9449]
[1764338030479,3.25476939,3072.5,3072.0,0.9449]
[1764338030685,0.34347835,3072.4,3072.1,0.6589]
[1764338030869,0.0406848,3072.4,3072.1,0.6589]
[1764338031069,0.0406848,3072.4,3072.3,0.4688]
[1764338031267,0.34347307,3072.4,3072.3,0.4688]
[1764338031565,0.34347307,3072.4,3072.0,0.001]
[1764338031566,0.70237307,3072.4,3072.0,0.001]
[1764338031808,0.30278827,3072.3,3072.0,0.001]
[1764338032005,3.25510237,3072.1,3072.0,0.001]
[1764338032300,3.55811661,3072.1,3072.0,0.001]
[1764338033102,3.91701661,3072.1,3072.0,0.001]
[1764338033273,3.95770538,3072.1,3072.0,0.001]
[1764338033602,4.44270538,3072.1,3072.0,0.001]
[1764338034377,3.59880538,3072.1,3072.0,0.001]
[1764338034773,3.95900538,3072.1,3072.0,0.001]
[1764338034969,4.44280538,3072.1,3072.0,0.001]
[1764338035397,3.95900538,3072.1,3072.0,0.001]
[1764338035603,4.44280538,3072.1,3072.0,0.001]
[1764338037191,3.95900538,3072.1,3072.0,0.001]
[1764338037584,3.59880538,3072.1,3072.0,0.001]
[1764338037984,4.44270538,3072.1,3072.0,0.001]
[1764338038504,3.96020538,3072.1,3072.0,0.001]
[1764338038878,4.44270538,3072.1,3072.0,0.001]
[1764338041492,3.96020538,3072.1,3072.0,0.001]
[1764338041798,0.34370301,3072.1,3072.0,0.001]
[1764338041996,3.59880538,3072.1,3072.0,0.4698]
[1764338042305,4.07200538,3072.1,3072.0,0.001]
[1764338042505,4.44380538,3072.1,3072.0,0.001]
[1764338042676,4.54360538,3072.1,3072.0,0.001]
[1764338042877,3.59880538,3072.1,3072.0,0.4698]
[1764338043074,3.59880538,3072.1,3072.0,0.001]
[1764338043581,0.34370301,3072.1,3072.0,0.9449]
[1764338043905,3.55811661,3072.1,3072.0,0.9449]
[1764338044115,3.59880538,3072.1,3072.0,0.4698]
[1764338044609,3.59880538,3072.1,3072.0,0.9449]
[1764338044810,3.59880538,3072.1,3072.0,0.4698]
[1764338045586,3.59880538,3072.1,3072.0,0.001]
[1764338045986,3.95890538,3072.1,3072.0,0.001]
[1764338046318,5.26809949,3072.1,3072.0,0.001]
[1764338046515,3.95890538,3072.1,3072.0,0.001]
[1764338047117,4.44270538,3072.1,3072.0,0.001]
[1764338047886,4.44270538,3072.1,3071.6,0.001]
[1764338047887,0.405504,3072.0,3071.6,0.001]
[1764338048213,0.405504,3071.3,3070.6,0.001]
[1764338048414,0.6331,3070.7,3070.6,0.001]
[1764338048617,5.13229479,3070.7,3070.6,0.001]
[1764338048910,5.57039479,3070.7,3070.6,0.001]
[1764338049615,6.02496187,3070.7,3070.6,0.001]
[1764338049913,5.37259479,3070.7,3070.6,0.001]
[1764338050116,5.47239479,3070.7,3070.6,0.001]
[1764338051703,5.66389879,3070.7,3070.6,0.001]
[1764338051905,5.87789879,3070.7,3070.6,0.001]
[1764338053001,5.66389879,3070.7,3070.6,0.001]
[1764338053201,5.87789879,3070.7,3070.6,0.001]
[1764338053632,5.66389879,3070.7,3070.6,0.001]
[1764338053829,5.87789879,3070.7,3070.6,0.001]
[1764338054703,5.87795339,3070.7,3070.6,0.001]
[1764338056002,5.87795339,3070.7,3070.0,0.001]
[1764338056003,1.13109811,3070.6,3070.0,0.001]
[1764338056201,0.919804,3070.1,3070.0,0.001]
[1764338056401,0.919804,3070.1,3069.8,0.001]
[1764338056402,0.0998,3069.9,3069.8,0.001]
[1764338056653,11.57556415,3069.9,3069.8,0.001]
[1764338056936,0.49126884,3069.9,3069.8,0.4896]
[1764338057148,0.49126884,3069.9,3069.1,0.1882]
[1764338057149,7.42293902,3069.9,3069.1,0.1882]
[1764338057350,1.48756295,3069.8,3068.7,0.1882]
[1764338057552,0.922504,3069.6,3068.7,0.1882]
[1764338057839,1.22557284,3069.6,3068.7,0.1882]
[1764338058142,8.36560138,3069.6,3068.0,0.1838]
[1764338058341,8.36560138,3069.6,3068.1,0.4606]
[1764338058841,11.62335483,3069.6,3068.1,0.4606]
[1764338059957,11.62335483,3069.6,3068.0,0.1838]
[1764338059958,11.62335483,3069.6,3068.4,0.4522]
[1764338060158,5.1091204,3069.6,3069.1,0.1824]
[1764338060459,4.15792229,3069.6,3068.9,0.1824]
[1764338060757,5.4756164,3069.6,3068.9,0.1824]
[1764338061077,4.19734756,3069.6,3069.0,0.4522]
[1764338061431,4.49915605,3069.6,3069.0,0.4522]
[1764338061631,3.77354055,3069.6,3069.0,0.4522]
[1764338061837,3.77354055,3069.6,3068.9,0.1824]
[1764338061838,4.25644055,3069.6,3068.9,0.1824]
[1764338062157,4.98203466,3069.6,3068.9,0.1824]
[1764338062875,5.47433466,3069.6,3068.9,0.1824]
[1764338063078,4.49913466,3069.6,3068.9,0.6346]
[1764338063232,4.28513466,3069.6,3069.5,0.4585]
[1764338063432,4.28513466,3069.6,3069.5,0.9107]
[1764338063433,3.25775345,3069.6,3069.5,0.9107]
[1764338063739,0.04072059,3069.7,3069.5,0.4585]
[1764338063740,3.29840732,3069.7,3069.5,0.4585]
[1764338063938,3.29840732,3069.7,3069.6,0.9097]
[1764338063939,0.04072059,3069.7,3069.6,0.9097]
[1764338064259,3.25764732,3069.7,3069.6,0.9097]
[1764338064830,3.25764732,3069.7,3069.5,0.001]
[1764338065047,1.06795216,3069.6,3069.5,0.001]
[1764338065331,0.34235805,3069.6,3069.5,0.001]
[1764338065561,0.04072191,3069.6,3069.5,0.001]
[1764338065730,0.04072191,3069.6,3069.5,0.4585]
[1764338066764,3.29847536,3069.6,3069.5,0.4585]
[1764338067162,3.29847536,3069.6,3069.5,0.9107]
[1764338067331,3.29847536,3069.6,3069.5,0.4585]
[1764338067762,3.29847536,3069.6,3069.5,0.9107]
[1764338067960,0.04072191,3069.6,3069.5,0.9107]
[1764338068160,3.25768288,3069.7,3069.5,0.9107]
[1764338068332,0.04072191,3069.6,3069.5,0.001]
[1764338068757,0.04072191,3069.6,3069.5,0.4585]
[1764338069064,3.29847536,3069.6,3069.5,0.9107]
[1764338069277,0.04071793,3069.9,3069.5,0.9107]
[1764338069562,5.95593443,3070.0,3069.5,0.001]
[1764338069765,1.47168548,3069.9,3069.5,0.001]
[1764338070139,0.0998,3069.8,3069.5,0.001]
[1764338070333,0.04072059,3069.7,3069.5,0.001]
[1764338071089,3.25775345,3069.6,3069.5,0.001]
[1764338071669,0.04072059,3069.7,3069.5,0.9107]
[1764338071978,0.34300696,3070.2,3069.6,0.4575]
[1764338072145,6.51444578,3070.1,3069.6,0.9097]
[1764338072339,0.04071661,3070.0,3069.6,0.4522]
[1764338072536,0.04071661,3070.0,3069.7,0.4522]
[1764338072742,0.04071661,3070.0,3069.9,0.4575]
[1764338072952,3.2980456,3070.0,3069.9,0.4575]
[1764338073137,0.04071661,3070.0,3069.9,0.9097]
[1764338073546,0.214,3070.6,3069.9,0.9097]
[1764338073547,6.51380926,3070.4,3069.9,0.9097]
[1764338073747,0.92239411,3070.9,3069.5,3.25883369]
[1764338073748,0.72559411,3071.0,3070.5,0.6399]
[1764338074069,0.30186266,3070.9,3070.6,0.4522]
[1764338074239,0.72559411,3071.1,3070.6,0.4522]
[1764338074660,0.4934,3071.0,3070.2,0.1824]
[1764338074954,0.72559411,3070.8,3070.2,0.1824]
[1764338075358,3.25637435,3070.9,3070.7,0.4575]
[1764338075666,0.4786,3070.8,3070.1,0.1824]
[1764338075872,0.04070733,3070.7,3070.1,0.1824]
[1764338076387,0.04070733,3070.7,3070.1,0.6346]
[1764338076553,0.04070733,3070.7,3070.2,0.4522]
[1764338076945,0.040706,3070.8,3070.2,0.4522]
[1764338077159,6.51317288,3070.7,3070.2,0.4522]
[1764338077365,0.04070865,3070.6,3070.2,0.4522]
[1764338077766,0.04070865,3070.6,3070.5,0.4575]
[1764338078584,0.04070733,3070.7,3070.5,0.9097]
[1764338078892,3.25622082,3071.1,3070.5,0.9097]
[1764338078893,3.29697682,3071.0,3070.6,0.4575]
[1764338079196,0.04070335,3071.0,3070.6,0.4575]
[1764338079399,0.72559411,3071.2,3070.9,0.4575]
[1764338079594,0.04070202,3071.1,3070.9,0.4575]
[1764338079797,0.04070202,3071.1,3071.0,0.4522]
[1764338080010,0.04070202,3071.1,3071.0,1.0921]
[1764338080219,0.76629481,3071.2,3071.0,1.0921]
[1764338080381,3.25555463,3071.7,3071.0,1.0921]
[1764338080382,0.4066,3071.9,3071.1,0.9097]